Cogmind - Beta 11 X5 @@@ ROGUE MODE // 2021.06.16 @ 16:37:00 Player: alice_fexa Result: Destroyed by D-53 Grenadier with Mini Grenade Launcher Performance ------------- Evolutions (0) 0 Regions Visited (2) 400 Robots Destroyed (20) 100 Value Destroyed (422) 422 Prototype IDs (0) 0 Alien Tech Used (0) 0 Bonus (0) 0 TOTAL SCORE: 922 Bonus ------- None Cogmind --------- Core Integrity 0/250 Matter 127/300 Energy 100/100 System Corruption 0% Temperature Cool (0) Movement Treading (260) Ox1 Location -10/Mines Parts ------- > --- POWER (1) -------- (None) > --- PROPULSION (2) --- Light Treads > --- UTILITY (2) ------ Heat Sink Large Storage Unit > --- WEAPON (2) ------- Improved Light Cannon Improved Light Cannon > --- INVENTORY (15) --- Ion Engine Light Treads Wheel Improved Heat Sink Experimental Sensor Array Light EM Pulse Cannon Light EM Pulse Cannon Shotgun Shotgun Shotgun Shotgun Grenade Launcher Grenade Launcher Peak State ------------ > --- POWER ------------ Ion Engine > --- PROPULSION ------- Light Treads Wheel > --- UTILITY ---------- Heat Sink Large Storage Unit > --- WEAPON ----------- Improved Light Cannon Improved Light Cannon > --- INVENTORY -------- Ion Engine Light Treads Improved Heat Sink Experimental Sensor Array Light EM Pulse Cannon Light EM Pulse Cannon Assault Rifle Shotgun Shotgun Shotgun Shotgun Improved Light Cannon Improved Light Cannon Grenade Launcher Grenade Launcher [Rating: 12] Favorites ----------- Power Ion Engine Engine Ion Engine Propulsion Light Treads Treads Light Treads Wheel Wheel Utility Heat Sink Device Heat Sink Storage Large Storage Unit Weapon Improved Light Cannon Energy Gun Medium Laser Ballistic Gun Assault Rifle Ballistic Cannon Improved Light Cannon Launcher Grenade Launcher Build | -11 -10 -10 ------- Run | Scr Mat Min Slots Evolved . | . . . Power . | . . . Propulsion . | . . . Utility . | . . . Weapon . | . . . Parts Attached 29 | 6 16 7 Power 5 | 1 4 . Engine 5 | 1 4 . Core . | . . . Reactor . | . . . Propulsion 6 | 2 1 3 Treads 3 | 1 1 1 Leg . | . . . Wheel 3 | 1 . 2 Hover . | . . . Flight . | . . . Utility 5 | 1 4 . Device 2 | . 2 . Storage 3 | 1 2 . Processor . | . . . Hackware . | . . . Protection . | . . . Artifact . | . . . Weapon 13 | 2 7 4 Energy Gun 1 | 1 . . Energy Cannon . | . . . Ballistic Gun 1 | 1 . . Ballistic Cannon 7 | . 4 3 Launcher 4 | . 3 1 Special Weapon . | . . . Impact Weapon . | . . . Slashing Weapon . | . . . Piercing Weapon . | . . . Special Melee Weapon . | . . . Unidentified Prototypes . | . . . Parts Lost 6 | . . 6 Power 1 | . . 1 Propulsion 3 | . . 3 Utility . | . . . Weapon 2 | . . 2 Highest Loss Streak 4 | . . 4 Average Slot Usage (%) 98 | . 99 97 Engine 13 | . 14 13 Treads 13 | . 14 13 Wheel 13 | . 14 12 Device 13 | . 13 14 Storage 14 | . 14 14 Energy Gun 2 | . 3 . Ballistic Gun 2 | . 3 . Ballistic Cannon 22 | . 20 27 Launcher 1 | . 1 . Naked Turns . | . . . Heaviest Build 34 | 14 34 34 Greatest Support 20 | 20 10 10 Greatest Overweight (x) 3 | 1 3 3 Average Overweight (x) 2 | . 2 3 Largest Inventory Capacity 15 | 8 15 15 Average Capacity 12 | 6 11 15 Most Carried 15 | 4 15 15 Average Carried 11 | 2 10 14 Final Capacity 15 | 8 15 15 Final Carried 15 | 4 15 13 Class Distribution -------------------- 100% | Mutant Dominant Class ---------------- Mutant | -10/Materials Mutant | -10/Mines Resources | -11 -10 -10 ----------- Run | Scr Mat Min Matter Collected 752 | 196 409 147 Remotely . | . . . Salvage Created 485 | . 387 98 Parts 37 | . 31 6 Haulers Intercepted 2 | . 2 . Recyclers Shooed . | . . . Parts Field Recycled . | . . . Retrieved Matter . | . . . Parts Self-Destructed . | . . . Prevented . | . . . Kills | -11 -10 -10 ------- Run | Scr Mat Min Combat Hostiles Destroyed 22 | . 9 13 Guns 2 | . 2 . Cannons 7 | . 4 3 AOE 13 | . 3 10 Classes Destroyed 8 | . 5 3 Worker 1 | . . 1 Hauler 2 | . 2 . Recycler 2 | . 1 1 Watcher 2 | . 2 . Swarmer 6 | . 3 3 Grunt 6 | . 6 . Demolisher 1 | . . 1 Assembled 9 | . . 9 Best Kill Streak 9 | . 4 9 Combat Bots Only 9 | . 3 9 Max Kills in Single Turn 2 | . 2 2 Gunslinging . | . . . Exploded 2 | . 2 2 Melee . | . . . Uniques/NPCs Destroyed . | . . . Combat | -11 -10 -10 -------- Run | Scr Mat Min Damage Taken 1192 | . 264 928 Core 257 | . 25 232 Absorbed by Shields . | . . . Core Remaining (%) 100 | 100 . . Volleys Fired 68 | . 38 30 Largest 2 | . 2 2 Hottest 78 | . 78 78 Shots Fired 121 | . 73 48 Gun 34 | . 34 . Cannon 76 | . 36 40 Launcher 11 | . 3 8 Special . | . . . Kinetic 93 | . 53 40 Thermal 17 | . 17 . Explosive 11 | . 3 8 Electromagnetic . | . . . Robot Hit Streak 12 | . 12 9 Robot Miss Streak 7 | . 4 7 Penetration Max . | . . . Secondary Targets . | . . . Shots Hit Robots 63 | . 41 22 Core Hits 47 | . 18 29 Critical Kills . | . . . Critical Parts Destroyed . | . . . Critical Strikes 2 | . 2 . Blast 2 | . 2 . Melee Attacks . | . . . Impact . | . . . Slashing . | . . . Piercing . | . . . Sneak Attacks . | . . . Combat Hostiles . | . . . Follow-up Attacks . | . . . Damage Inflicted 2049 | . 928 1121 Guns 260 | . 260 . Cannons 833 | . 456 377 Explosions 956 | . 212 744 Melee . | . . . Ramming . | . . . Kinetic 944 | . 567 377 Thermal 256 | . 149 107 Explosive 849 | . 212 637 Electromagnetic . | . . . Impact . | . . . Slashing . | . . . Piercing . | . . . Highest Corruption . | . . . Average Corruption . | . . . Corruption Purged . | . . . Overload Shots . | . . . Overflow Damage 21 | . . 21 Projectiles 1 | . . 1 Explosions 20 | . . 20 Melee . | . . . Knockbacks 8 | . 2 6 Impact . | . . . Kinetic 7 | . 2 5 Secondary 1 | . . 1 Self-Inflicted Damage 141 | . 30 111 Shots 6 | . 1 5 Rammed . | . . . Targets Rammed . | . . . Kicked . | . . . Crushed . | . . . Highest Temperature 195 | . 195 5 Average Temperature 88 | . 90 5 Received Heat Transfer 183 | . 123 60 Siege Activations . | . . . Robots Corrupted . | . . . Combat Hostiles . | . . . Parts Fried . | . . . Impact Corruptions . | . . . Robots Melted . | . . . Combat Hostiles . | . . . Parts Melted 1 | . 1 . Heat Transferred 644 | . 444 200 Parts Sabotaged . | . . . Parts Stolen . | . . . Parts Stripped . | . . . Power Chain Reactions . | . . . Missiles Intercepted . | . . . Alert | -11 -10 -10 ------- Run | Scr Mat Min Peak Influence 168 | . 168 125 Initial 1 | . . 1 Average 44 | . 51 33 Maximum Alert Level . | . . . Low Security (%) 100 | 100 100 100 Level 1 . | . . . Level 2 . | . . . Level 3 . | . . . Level 4 . | . . . Level 5 . | . . . High Security . | . . . Max Security . | . . . Squads Dispatched 1 | . 1 . Investigation . | . . . Extermination . | . . . Reinforcement 1 | . 1 . Assault . | . . . Garrison . | . . . Intercept . | . . . Construction Impeded . | . . . Haulers Reinforced . | . . . Cargo Convoy Interrupts . | . . . Stealth | -11 -10 -10 --------- Run | Scr Mat Min Distress Signals 1 | . 1 . Communications Jammed . | . . . Distress Signals . | . . . Times Spotted 42 | . 15 27 Peak Tracking Total 20 | . 4 20 Tactical Retreats 3 | . . 3 Traps | -11 -10 -10 ------- Run | Scr Mat Min Traps Triggered . | . . . Indirectly . | . . . Trap Hack Attempts . | . . . Triggered . | . . . Disarmed 3 | . 3 . Reprogrammed 6 | . 6 . Reused . | . . . Traps Extracted . | . . . Installed . | . . . Triggered . | . . . Machines | -11 -10 -10 ---------- Run | Scr Mat Min Machines Disabled 3 | . 1 2 Max in Single Turn 2 | . 1 2 Machines Sabotaged . | . . . Garrisons Compromised . | . . . Overloaded Fab Kills . | . . . Fab Network Shutdowns . | . . . Hacking | -11 -10 -10 --------- Run | Scr Mat Min Machines Accessed 7 | . 7 . Terminals 7 | . 7 . Fabricators . | . . . Repair Stations . | . . . Recycling Units . | . . . Scanalyzers . | . . . Garrison Access . | . . . Total Hacks 18 | . 18 . Successful 11 | . 11 . Failed 7 | . 7 . Catastrophic 2 | . 2 . Database Lockouts . | . . . Manual 16 | . 16 . Terminals 18 | . 18 . Fabricators . | . . . Repair Stations . | . . . Recycling Units . | . . . Scanalyzers . | . . . Garrison Access . | . . . Terminal Hacks 8 | . 8 . Unreport Threat 1 | . 1 . Locate Traps 4 | . 4 . Disarm Traps 1 | . 1 . Reprogram Traps 1 | . 1 . Zone Layout 1 | . 1 . Fabricator Hacks . | . . . Repair Station Hacks . | . . . Recycling Unit Hacks . | . . . Scanalyzer . | . . . Garrison Access Hacks . | . . . Unauthorized Hacks 3 | . 3 . Terminals 3 | . 3 . Botnet 3 | . 3 . Fabricators . | . . . Repair Stations . | . . . Recycling Units . | . . . Scanalyzers . | . . . Garrison Access . | . . . Data Cores Recovered . | . . . Used . | . . . Hacking Detections 7 | . 7 . Full Trace Events . | . . . Feedback Events . | . . . Feedback Blocked . | . . . Robot Schematics Acquired . | . . . Robots Built . | . . . Matter . | . . . Time . | . . . Total Robot Build Rating . | . . . Part Schematics Acquired . | . . . Parts Built . | . . . Matter . | . . . Time . | . . . Total Part Build Rating . | . . . Parts Repaired . | . . . Time . | . . . Parts Recycled . | . . . Recycled Matter . | . . . Retrieved Matter . | . . . Retrieved Components . | . . . Parts Scanalyzed . | . . . Part Schematics Acquired . | . . . Parts Damaged . | . . . Bothacking | -11 -10 -10 ------------ Run | Scr Mat Min Used RIF Installer . | . . . Robots Hacked . | . . . Non-combat . | . . . Combat . | . . . Robot Hacks Applied . | . . . Relay Couplers Released . | . . . Robots Rewired . | . . . Allies Hacked . | . . . Hacks Repelled . | . . . Allies | -11 -10 -10 -------- Run | Scr Mat Min Total Allies . | . . . Largest Group . | . . . Highest-Rated Group . | . . . Highest-Rated Ally . | . . . Total Orders . | . . . Ally Attacks . | . . . Total Damage . | . . . Kills . | . . . Allies Corrupted . | . . . Allies Melted . | . . . Intel | -11 -10 -10 ------- Run | Scr Mat Min Robot Analysis Total . | . . . Derelict Logs Recovered . | . . . Drone Launches . | . . . Drone Recoveries . | . . . Exploration | -11 -10 -10 ------------- Run | Scr Mat Min Turns Passed 1587 | 42 1107 438 Spaces Moved 1093 | 33 796 264 Core 2 | 2 . . Treads 1 | 1 . . Legs . | . . . Wheels 1090 | 30 796 264 Hover . | . . . Flight . | . . . Fastest Speed 50 | 50 95 125 Average Speed 113 | 89 110 125 Slowest Speed 160 | 160 125 125 Overloaded Moves . | . . . Propulsion Burnouts . | . . . Robots Hopped . | . . . Cave-ins Triggered . | . . . Exploration Rate (%) 45 | 4 98 34 Regions Visited 2 Branch Regions 1 Pre-discovered Areas . | . . . Known Exits Taken . | . . . Unknown Exits Taken 2 | 1 1 . Scrap Searched 1 | . . 1 Spaces Dug 6 | . 6 . Terrain Destroyed 112 | . 29 83 Melee . | . . . Projectile 4 | . 2 2 AOE 108 | . 27 81 Terrain Rammed . | . . . Walls Destroyed . | . . . Machines Disabled . | . . . Actions | -11 -10 -10 --------- Run | Scr Mat Min Total 1322 | 42 956 324 Wait 87 | . 69 18 Move 1091 | 32 795 264 Hop . | . . . Pick Up 26 | 4 19 3 Fast Attach 10 | 6 4 . Attach 4 | . . 4 Detach . | . . . Swap 15 | . 12 3 Drop 21 | . 19 2 Fire 68 | . 38 30 Melee . | . . . Ram . | . . . Kick . | . . . Crush . | . . . Escape Stasis . | . . . Rewire . | . . . Trap . | . . . Miscellaneous . | . . . Route ------- -11/Scrapyard -10/Materials (discovered 5 exits: [*Mat x3] / [*Min x2]) -10/Mines History --------- Turn | Location | Event 24 | -11/Scrapyard | Discovered new exit (range 15) 43 | -11/Scrapyard | Entered Materials 310 | -10/Materials | Discovered new exit (range 16) 322 | -10/Materials | Build established: Mutant 373 | -10/Materials | Discovered new exit (range 9) 471 | -10/Materials | Discovered new exit (range 3) 637 | -10/Materials | Discovered new exit (range 16) 944 | -10/Materials | Discovered new exit (range 8) 1150 | -10/Materials | Entered Mines 1151 | -10/Mines | Assembled infested the area 1156 | -10/Mines | Assisted by a Guerilla fighting off Assembled 1183 | -10/Mines | Core integrity fell below 50% 1209 | -10/Mines | Destroyed 9 combat bots 1266 | -10/Mines | Found a damaged Exp. Sensor Array with a note attached 1269 | -10/Mines | Found Prototype Device 1585 | -10/Mines | Core integrity fell below 20% 1588 | -10/Mines | Destroyed by D-53 Grenadier with Mini Grenade Launcher Last Messages --------------- 01565_ D-53 Grenadier knocked back. 01566_ U-05 Engineer lays Concrete. 01567_ U-05 Engineer builds a Wall. 01569_ Wheel destroyed. 01570_ Ion Engine destroyed. 01571_ Imp. Light Cannon destroyed. 01571_ U-05 Engineer lays Concrete. 01572_ Imp. Light Cannon destroyed. 01572_ U-05 Engineer builds a Wall. 01573_ D-53 Grenadier destroyed. 01574_ The unstable cave ceiling collapses. 01576_ D-53 Grenadier knocked back. 01577_ U-05 Engineer lays Concrete. 01579_ U-05 Engineer builds a Wall. 01579_ D-53 Grenadier knocked back. 01580_ The unstable cave ceiling collapses. 01584_ U-05 Engineer builds a Wall. 01585_ The unstable cave ceiling collapses. 01585_ D-53 Grenadier knocked back. 01588_ The unstable cave ceiling collapses. Map ----- +----------------------------------------------------+ | ??????????????????????????????????????? | | ????????????????????######????????????? | | ?????????????????### ##???????????? | | ???????????????## ##??????????? | | ???????????##### #????#####?? | | ??????????## #?###"#""##? | | #?????????# #??# "#? | | ##????????# #???# "#? | | ##????????# ##??# "## | | ##???????## #?## " # | | #????????# ###" "## | | ##???????## ##" # | | ########## ##"[ " # | | ###" ##? | | ###?#" "#? | | ### ###### ##???#" ##? | | ??# #????# ## " ##????#""" """#?? | | ??# #????## ##### #####???#### ####?? | | ??# #?????####?# # ### ####??# #????? | | ??# #??????????## ### # ##?#=#????? | | ??# #???????????## ### #?# #????? | | ??# #??????????### ! ### #????? | | ??# #??????????#! ##=#????? | | ### #??????????# ## # #*#????? | | #??????????###### # [ |#????? | | #####???????????????# @ ####????? | | ??????????????????### #???????? | | ?????????????????## #???????? | | ????????????????## ##??????? | | ????????????????# # ##??????? | | ????????????????# #=### ##??????? | | ????????????????## u%d%% ##??????? | | ?????????????????# % ### #####??????? | | ?????????????????# #### #??????? | | ?????????????????# ??## # ####??????? | | ???????????????? ???######?????????? | | ???????????????### #??????????????????? | | ?????????????????# ???????????????????? | | ?????????????????# ???????????????????? | | ??????????????????????????????????????? | | ??????????????????????????????????????? | | ??????????????????????????????????????? | | ??????????????????????????????????????? | | ??????????????????????????????????????? | | ??????????????????????????????????????? | | ??????????????????????????????????????? | | ??????????????????????????????????????? | | ??????????????????????????????????????? | | ??????????????????????????????????????? | | ??????????????????????????????????????? | +----------------------------------------------------+ Best States ------------- Heat Dissipation 35 Energy Generation 10 Energy Capacity 250 Matter Stores 290 Matter Capacity 300 Sight Range 16 Terrain Scan Density 10 Evasion (%) 44 Recoil Reduction 1 Item Schematics ----------------- None Robot Schematics ------------------ None Fabricated ------------ Nothing Alien Tech Used ----------------- None Achievements -------------- None Challenges ------------ None Game ------ Seed StasisTitaniumLog Manual? 0 Play Time 00:12:55 Cumulative 1050.7 hours Start 2021.06.16 @ 16:11:42 End 2021.06.16 @ 16:37:00 Sessions 1 Manual Loads 0 Difficulty Rogue Special Mode None Game No. 806 Rogue 766 Adventurer 40 Explorer 0 Win Type - Total 119 Types 60/4/33/2/1/4/13/1/1 Lore% 92 Gallery% 97 Achievement% 80 Wizard Run 0 Options --------- ASCII 0 Keyboard 0 Movement Numpad Keybinds 0 Fullscreen 0 Font 20/Terminus Map View 76x50 Tactical HUD 1 Map Filters NONE Filters NONE Steam 1 RUN: 9a9e21b0-0feb-4264-9b4e-3734d266d4bf